bitfinex-derivatives/quotes_SOLF0:USTF0_20251202
["timestamp","ask_amount","ask_price","bid_price","bid_amount"]
[1764688529998,75.97,136.53,136.41,102.6231]
[1764688530199,4.31,136.58,136.46,102.591]
[1764688530399,4.31,136.65,136.52,102.5428]
[1764688530593,4.31,136.63,136.48,102.5721]
[1764688530901,0.04713698,136.57,136.54,0.05626335]
[1764688531199,4.31,136.56,136.44,102.6031]
[1764688531493,71.62,136.62,136.51,6.5923]
[1764688531694,4.31,136.65,136.5,102.5591]
[1764688531887,4.31,136.65,136.52,109.135]
[1764688531888,71.64,136.64,136.52,109.135]
[1764688532087,75.95,136.64,136.48,102.5721]
[1764688532297,0.04868208,136.57,136.55,0.04943843]
[1764688532488,0.04694091,136.57,136.55,0.04849973]
[1764688533091,0.04694091,136.57,136.55,6.63899973]
[1764688533290,71.54,136.63,136.55,213.14059973]
[1764688533492,71.54,136.63,136.54,102.5263]
[1764688533694,71.52,136.63,136.55,102.5197]
[1764688533908,71.5,136.63,136.57,102.5047]
[1764688534198,3.56742783,136.66,136.58,62.0]
[1764688534496,0.04983146,136.61,136.59,0.05574431]
[1764688534695,3.56742783,136.66,136.6,109.0665]
[1764688534893,4.53,136.88,136.68,102.4231]
[1764688535200,4.53,136.82,136.65,109.0314]
[1764688535400,4.53,136.79,136.65,109.0314]
[1764688535593,106.8855,136.78,136.61,102.4745]
[1764688535793,0.05447619,136.73,136.71,0.0473064]
[1764688536101,102.347,136.79,136.61,102.4745]
[1764688536102,4.53,136.75,136.64,102.4549]
[1764688536405,71.48,136.78,136.65,102.4456]
[1764688536595,76.15,136.77,136.63,102.4587]
[1764688536794,76.15,136.77,136.62,102.4648]
[1764688536795,71.62,136.76,136.62,102.4648]
[1764688536991,0.05299999,136.7,136.68,0.04911989]
[1764688537195,0.04933526,136.7,136.68,0.0486258]
[1764688537799,0.04933526,136.7,136.6,102.482]
[1764688537999,4.53,136.74,136.65,102.4428]
[1764688538200,71.58,136.75,136.64,102.4539]
[1764688538399,102.3466,136.79,136.63,102.4565]
[1764688538400,4.53,136.77,136.63,109.0433]
[1764688538588,4.57,136.83,136.69,102.4141]
[1764688538794,0.04806583,136.77,136.75,0.05551012]
[1764688538994,4.57,136.83,136.75,0.05551012]
[1764688538995,71.56,136.78,136.75,0.05551012]
[1764688539198,0.04864376,136.77,136.75,0.05551012]
[1764688539402,0.04864376,136.77,136.63,102.4568]
[1764688539597,71.54,136.78,136.61,109.0654]
[1764688539598,4.57,136.75,136.61,109.0654]
[1764688539793,102.4399,136.67,136.51,102.5496]
[1764688539993,4.57,136.66,136.53,102.5349]
[1764688540196,4.57,136.65,136.5,102.557]
[1764688540394,76.09,136.64,136.53,102.5352]
[1764688540591,0.05218168,136.59,136.56,0.05010029]
[1764688540804,71.54,136.58,136.56,0.05010029]
[1764688540994,0.05218168,136.59,136.56,0.05010029]
[1764688541194,71.52,136.58,136.56,0.05010029]
[1764688541596,0.05218168,136.59,136.56,0.05010029]
[1764688542512,71.5,136.69,136.65,102.4448]
[1764688542691,4.57,136.74,136.61,102.4721]
[1764688542891,71.52,136.73,136.61,102.4721]
[1764688543105,71.5,136.72,136.61,102.4721]
[1764688543295,0.0499976,136.68,136.65,0.046749]
[1764688543499,76.05,136.67,136.65,0.046749]
[1764688543704,76.05,136.67,136.57,102.5047]
[1764688543899,4.57,136.67,136.6,102.4852]
[1764688544108,71.48,136.66,136.57,102.5047]
[1764688544400,71.48,136.66,136.51,62.0]
[1764688544401,71.48,136.65,136.52,102.5426]
[1764688544603,0.05135851,136.6,136.57,0.05197033]
[1764688544806,0.04991335,136.6,136.57,0.05282017]
[1764688544996,4.61991335,136.6,136.57,0.05282017]
[1764688545304,4.61991335,136.6,136.47,102.5811]
[1764688545305,71.46,136.59,136.43,102.6087]
[1764688545508,71.46,136.59,136.47,102.5814]
[1764688545509,71.58,136.58,136.47,102.5814]
[1764688545699,178.6525,136.58,136.45,102.5982]
[1764688546209,4.57,136.58,136.45,102.5982]
[1764688546505,0.05159606,136.53,136.5,0.05217975]
[1764688546812,4.57,136.51,136.37,102.6564]
[1764688546997,102.5688,136.49,136.36,102.6661]
[1764688547205,107.1388,136.49,136.36,102.6661]
[1764688547502,102.5988,136.45,136.32,102.693]
[1764688547701,0.05298479,136.4,136.37,0.04806109]
[1764688548696,4.57,136.44,136.37,0.04806109]
[1764688548903,107.1935,136.42,136.37,0.04806109]
[1764688549098,107.1935,136.42,136.23,102.7604]
[1764688549099,4.57,136.37,136.23,102.7604]
[1764688549293,4.57,136.33,136.2,102.7822]
[1764688549497,102.6764,136.35,136.21,102.7755]
[1764688549498,76.13,136.32,136.21,102.7755]
[1764688549708,4.57,136.32,136.22,102.7683]
[1764688549909,4.57,136.32,136.23,102.7604]
[1764688550108,0.04796838,136.28,136.26,0.05076756]
[1764688550308,4.61796838,136.28,136.26,0.00076756]
[1764688550607,4.61796838,136.28,136.19,102.7912]
[1764688550909,71.54,136.27,136.17,102.8064]
[1764688551106,71.54,136.26,136.19,102.7934]
[1764688551304,71.54,136.25,136.18,6.6086]
[1764688551501,0.04701879,136.23,136.2,0.05085058]
[1764688551702,102.7008,136.32,136.2,0.04870889]
[1764688551703,4.57,136.27,136.2,0.04870889]
[1764688551900,0.05346383,136.23,136.2,102.7837]
[1764688552102,4.57,136.28,136.17,102.8065]
[1764688552301,4.57,136.28,136.2,102.7839]
[1764688552609,71.72,136.27,136.17,102.8065]
[1764688552910,71.72,136.27,136.18,102.7989]
[1764688553119,0.05115918,136.24,136.21,0.03992712]
[1764688553303,4.62115918,136.24,136.21,0.03992712]
[1764688553503,4.57,136.23,136.11,102.852]
[1764688553703,4.57,136.23,136.13,62.0]
[1764688554116,4.57,136.21,136.08,102.8743]
[1764688554498,0.0505478,136.16,136.08,102.8745]
[1764688554811,71.64,136.15,136.06,102.886]
[1764688554998,0.04868055,136.12,136.05,102.8973]
[1764688555199,71.62,136.11,136.05,102.8973]
[1764688555411,4.57,136.1,136.01,102.9269]
[1764688555609,71.6,136.09,136.0,102.9348]
[1764688555812,0.05023605,136.07,135.99,102.9419]
[1764688556008,0.05023605,136.07,135.98,102.949]
[1764688556308,0.04640085,136.04,135.98,102.949]
[1764688556513,0.04640085,136.04,135.94,102.9805]
[1764688556712,0.04911807,136.0,135.98,102.9523]
[1764688556905,0.04918367,136.0,135.97,102.9576]
[1764688557113,0.04918367,136.0,135.97,164.9549]
[1764688557412,0.04918367,136.0,135.97,62.0]
[1764688557616,0.04918367,136.0,135.93,102.9872]
[1764688557811,71.52,135.99,135.95,102.9741]
[1764688558007,71.52,135.99,135.94,102.9797]
[1764688558207,71.56918367,136.0,135.95,102.9726]
[1764688558408,71.56918367,136.0,135.93,102.9872]
[1764688558409,0.04918367,136.0,135.99,102.9406]
[1764688558612,71.52,136.11,136.02,102.9167]
[1764688558815,4.57,136.14,136.03,102.9086]
[1764688559115,4.57,136.12,135.97,102.9541]
[1764688559318,4.57,136.12,135.97,102.9573]
[1764688559518,4.57,136.05,136.03,0.0480938]
[1764688559716,76.13,136.04,135.92,102.9984]
[1764688560010,76.13,136.04,135.9,103.0101]
[1764688560011,4.57,136.04,135.9,103.0101]
[1764688560214,4.57,136.02,135.91,106.57082783]
[1764688560411,4.57,136.1,135.95,102.9701]
[1764688560604,102.8637,136.1,135.96,62.0]
[1764688560808,0.04638668,136.04,135.96,62.0]
[1764688561010,4.61638668,136.04,135.91,3.56742783]
[1764688561321,0.05551466,135.99,135.91,3.56742783]
[1764688561621,0.05551466,135.99,135.91,106.57002783]
[1764688561818,0.05551466,135.99,135.96,102.9679]
[1764688562113,0.05551466,135.99,135.91,106.57112783]
[1764688562309,0.05551466,135.99,135.91,106.56902783]
[1764688562505,4.57,135.97,135.91,3.56742783]
[1764688562709,4.57,135.94,135.91,3.56742783]
[1764688562914,4.57,135.94,135.82,103.0698]
[1764688563119,0.05055996,135.89,135.82,103.0698]
[1764688563314,0.05055996,135.89,135.87,206.0689]
[1764688563514,76.09,135.99,135.92,102.9947]
[1764688563715,0.05014247,135.97,135.93,102.9901]
[1764688563919,0.05014247,135.97,135.92,62.0]
[1764688564116,0.05014247,135.97,135.91,102.9986]
[1764688564318,0.05014247,135.97,135.91,103.0028]
[1764688564518,0.05014247,135.97,135.94,102.9806]
[1764688564817,0.05014247,135.97,135.91,103.0028]
[1764688565220,0.05014247,135.97,135.91,6.6214]
[1764688565616,0.05014247,135.97,135.93,102.9836]
[1764688565820,0.05014247,135.97,135.94,109.6]
[1764688566014,0.05014247,135.97,135.96,102.9683]
[1764688566323,159.5,136.04,135.94,104.4598]
[1764688566513,159.5,136.04,135.96,102.9651]
[1764688566720,164.07,136.04,135.91,103.0025]
[1764688566922,92.63,136.04,135.96,102.9647]
[1764688567124,0.05046946,136.01,135.99,0.05014247]
[1764688568113,0.05046946,136.01,135.99,102.99394247]
[1764688568318,0.05046946,136.01,135.99,0.05014247]
[1764688568524,0.05046946,136.01,135.99,102.99304247]
[1764688568820,88.06,136.04,135.99,102.99064247]
[1764688569024,4.36,136.13,136.01,102.9275]
[1764688569227,4.36,136.13,136.03,102.9106]
[1764688569423,4.36,136.13,136.05,109.5131]
[1764688569617,4.36,136.13,136.04,102.9042]
[1764688569820,0.05055846,136.1,136.08,0.05222442]
[1764688571119,5.87055846,136.1,135.97,102.957]
[1764688571315,4.36,136.08,135.95,102.9724]
[1764688571516,71.32,136.07,135.97,102.9578]
[1764688571718,71.32,136.07,135.97,109.5791]
[1764688571926,4.36,136.06,135.95,102.9724]
[1764688572126,4.36,136.05,135.92,102.9982]
[1764688572330,4.41253121,136.02,135.99,0.0475552]
[1764688572830,4.36,136.0,135.87,103.0325]
[1764688573126,75.62,135.99,135.89,6.6227]
[1764688573332,75.62,135.99,135.84,103.0572]
[1764688573632,75.62,135.98,135.87,103.0363]
[1764688573837,0.05430037,135.94,135.83,103.0657]
[1764688574131,0.05148355,135.9,135.84,165.0569]
[1764688574531,71.29148355,135.9,135.82,103.0716]
[1764688574832,71.29148355,135.9,135.81,103.082]
[1764688575027,0.05239315,135.87,135.83,103.0631]
[1764688575224,0.05239315,135.87,135.83,103.0651]
[1764688575421,0.05239315,135.87,135.82,6.6261]
[1764688575625,0.05239315,135.87,135.82,103.074]
[1764688575830,71.22,135.93,135.87,103.0361]
[1764688576021,4.36,135.98,135.87,6.6234]
[1764688576223,122.7393133,136.0,135.86,103.0389]
[1764688576224,75.58,135.97,135.86,103.0389]
[1764688576432,4.36,135.95,135.83,103.0667]
[1764688576625,71.22,135.94,135.85,103.0513]
[1764688576828,0.05576967,135.91,135.88,0.05254688]
[1764688577026,4.41576967,135.91,135.88,0.05254688]
[1764688577330,0.05576967,135.91,135.88,0.05254688]
[1764688577930,0.05576967,135.91,135.88,103.07794688]
[1764688578134,0.05576967,135.91,135.89,103.021]
[1764688578433,4.41576967,135.91,135.88,0.05254688]
[1764688579021,0.05576967,135.91,135.88,0.05254688]
[1764688579222,0.05576967,135.91,135.89,103.0195]
[1764688579625,0.05576967,135.91,135.89,109.6418]
[1764688579823,71.12,136.01,135.91,103.0043]
[1764688580037,75.48,136.01,135.91,103.0043]
[1764688580423,4.36,136.0,135.9,103.0129]
[1764688580627,71.1,135.99,135.93,102.9888]
[1764688580825,0.05559706,135.97,135.95,6.67392757]
[1764688581035,4.36,136.04,135.97,102.9594]
[1764688581335,4.36,136.04,135.94,109.6027]
[1764688581533,4.36,136.04,135.97,102.9587]
[1764688581833,4.36,136.04,135.98,102.9519]
[1764688582034,71.1,136.05,136.0,0.05061963]
[1764688582240,0.04838521,136.02,136.0,0.05061963]
[1764688582427,88.2,136.12,136.03,102.9137]
[1764688582624,4.36,136.1,135.97,102.9568]
[1764688582835,4.36,136.1,135.99,102.942]
[1764688583027,4.36,136.1,135.99,102.9438]
[1764688583234,4.36,136.1,136.0,102.9378]
[1764688583435,4.36,136.1,135.96,102.9679]
[1764688583436,4.41435458,136.06,136.04,0.05619869]
[1764688583738,4.41435458,136.06,135.96,102.9681]
[1764688584036,4.41435458,136.06,135.94,102.9831]
[1764688584037,4.36,136.06,135.94,102.9831]
[1764688584240,4.36,136.06,135.96,102.9674]
[1764688584534,0.05622286,136.02,136.0,0.0521412]
[1764688584834,75.38,136.01,135.88,103.0255]
[1764688585038,0.05622286,136.02,135.89,62.0]
[1764688585039,4.36,136.0,135.89,62.0]
[1764688585236,102.9258,136.02,135.89,62.0]
[1764688585237,4.36,135.99,135.89,62.0]
[1764688585435,70.98,135.98,135.88,103.0247]
[1764688585640,75.34,135.98,135.88,103.0287]
[1764688585939,0.04808558,135.94,135.92,0.0467157]
[1764688586125,4.36,135.94,135.81,103.0811]
[1764688586330,4.36,135.94,135.77,103.1053]
[1764688586632,4.36,135.91,135.8,103.0891]
[1764688587136,4.41637561,135.87,135.84,0.05462277]
[1764688587341,4.41637561,135.87,135.79,103.0968]
[1764688587536,4.36,135.87,135.79,103.0968]
[1764688588035,4.36,135.87,135.77,103.1123]
[1764688588226,0.05519374,135.83,135.81,103.0793]
[1764688588427,4.36,135.93,135.81,103.0793]
[1764688588428,70.86,135.88,135.81,103.0793]
[1764688588733,4.36,135.93,135.83,103.0641]
[1764688588936,133.81213284,136.03,135.81,103.0801]
[1764688588937,70.86,135.92,135.81,103.0801]
[1764688589234,4.36,135.95,135.84,103.0548]
[1764688589432,0.05473749,135.91,135.88,0.04765099]
[1764688589633,0.0515216,135.91,135.88,0.05010185]
[1764688590237,4.4115216,135.91,135.79,103.0922]
[1764688590436,4.36,135.9,135.78,103.1043]
[1764688590632,70.82,135.89,135.79,103.0965]
[1764688590833,70.82,135.89,135.8,103.0883]
[1764688591029,4.36,135.9,135.82,103.0744]
[1764688591229,4.36,135.94,135.84,103.0578]
[1764688591428,8.65413284,135.97,135.84,103.0578]
[1764688591429,6.47495318,135.96,135.87,6.6237]
[1764688591631,70.78,135.95,135.84,103.0578]
[1764688591834,0.05583652,135.93,135.85,165.0516]
[1764688592041,0.05583652,135.93,135.87,6.6234]
[1764688592241,0.05583652,135.93,135.89,103.02]
[1764688592552,0.05583652,135.93,135.91,6.6214]
[1764688592734,0.05583652,135.93,135.85,103.0478]
[1764688592735,0.05583652,135.93,135.86,103.0399]
[1764688592936,0.05583652,135.93,135.85,103.0478]
[1764688593141,0.05583652,135.93,135.85,6.6246]
[1764688593336,5.69492158,135.92,135.83,103.0659]
[1764688593636,0.05022576,135.89,135.84,6.6248]
[1764688593843,0.05022576,135.89,135.85,103.0508]
[1764688594044,0.05022576,135.89,135.84,103.0541]
[1764688594246,0.05022576,135.89,135.87,103.0364]
[1764688594434,6.47495318,135.95,135.9,103.0074]
[1764688594639,5.70345964,135.94,135.88,103.028]
[1764688594839,5.70345964,135.93,135.9,103.0122]
[1764688595044,70.7,135.96,135.9,103.0122]
[1764688595242,15.67442443,136.0,135.89,103.0188]
[1764688595437,0.05150183,135.96,135.93,0.04737108]
[1764688595648,5.5115318,135.95,135.93,0.04737108]
[1764688595847,0.05150183,135.96,135.93,0.04737108]
[1764688597044,0.05150183,135.96,135.93,109.65797108]
[1764688597238,0.05150183,135.96,135.93,103.03747108]
[1764688597438,8.65413284,136.05,135.97,102.9566]
[1764688597644,9.69984851,136.04,135.93,102.9877]
[1764688597845,5.52984851,136.03,135.95,6.6198]
[1764688598050,5.52984851,136.02,135.99,102.945]
[1764688598246,8.65413284,136.07,135.99,102.945]
[1764688598247,8.65413284,136.06,135.99,102.9429]
[1764688598450,0.04889963,136.04,136.01,102.97955246]
[1764688598744,0.04889963,136.04,136.01,0.05395246]
[1764688599157,5.51136471,136.03,136.01,0.05395246]
[1764688599342,5.51623773,136.02,136.01,0.05395246]
[1764688600249,5.51623773,136.02,135.96,102.9677]
[1764688600453,5.51623773,136.01,135.95,102.9747]
[1764688600650,5.51623773,136.0,135.92,102.9968]
[1764688600952,3.773e-05,135.99,135.96,102.9668]
[1764688601155,74.48,136.08,136.01,102.927]
[1764688601156,8.65413284,136.07,136.01,102.927]
[1764688601348,0.04974983,136.05,136.03,102.96583136]
[1764688601554,0.04974983,136.05,136.03,0.05433136]
[1764688602569,4.04974983,136.05,135.96,102.9675]
[1764688602766,4.0,136.05,135.99,6.6177]
[1764688603159,4.0,136.05,135.95,102.9726]
[1764688603359,4.0,136.04,135.93,102.9836]
[1764688603560,0.05506068,136.0,135.95,102.9754]
[1764688603759,0.05506068,136.0,135.98,6.6183]
[1764688604260,8.65413284,136.07,135.97,102.9599]
[1764688604464,8.65413284,136.07,135.99,102.9441]
[1764688604663,8.65413284,136.06,136.02,102.9215]
[1764688604858,8.65413284,136.09,136.03,102.9138]
[1764688605161,8.65413284,136.09,136.05,0.05345768]
[1764688605162,0.0482597,136.07,136.05,0.05345768]
[1764688605558,12.70239254,136.07,135.98,102.9489]
[1764688605868,4.0,136.07,136.0,102.9379]
[1764688606071,74.34,136.07,135.99,102.942]
[1764688606282,74.34,136.07,136.01,102.9297]
[1764688606569,0.05392808,136.05,136.01,102.9297]
[1764688606779,70.32,136.08,136.04,6.6153]
[1764688607070,0.05070016,136.07,136.04,102.9069]
[1764688607367,0.05308945,136.07,136.06,6.6141]
[1764688607762,70.3,136.14,136.09,6.6129]
[1764688607961,4.0,136.13,136.02,102.9193]
[1764688608156,4.0,136.13,136.01,102.9276]
[1764688608157,19.26543284,136.13,135.97,13.1807133]
[1764688608373,4.0,136.12,136.0,102.938]
[1764688608564,4.0,136.12,136.01,102.9303]
[1764688608760,4.0,136.12,136.05,0.04769465]
[1764688608761,4.0506547,136.08,136.05,0.04769465]
[1764688608960,4.0506547,136.08,135.97,102.9572]
[1764688609165,4.0,136.08,135.97,102.9572]
[1764688609369,70.22,136.07,136.0,6.6172]
[1764688609568,70.22,136.07,135.98,102.9507]
[1764688609569,70.22,136.07,135.99,102.9431]
[1764688609763,70.22,136.07,136.01,6.6167]
[1764688609959,0.0498749,136.05,136.02,102.9214]
[1764688610174,4.0,136.13,136.06,102.8923]
[1764688610476,4.0,136.13,136.06,102.8879]
[1764688610972,70.16,136.13,136.09,6.6128]
[1764688611170,0.04927674,136.12,136.1,0.05036395]
[1764688611365,4.04927674,136.12,136.1,0.0473561]
[1764688611569,0.04927674,136.12,136.1,0.0473561]
[1764688612070,129.19412292,136.24,136.1,0.0473561]
[1764688612071,8.65413284,136.26,136.16,102.8119]
[1764688612264,74.14,136.27,136.18,102.7972]
[1764688612463,74.14,136.27,136.19,102.7935]
[1764688612658,4.0,136.33,136.2,102.7865]
[1764688612871,4.0,136.33,136.23,102.7633]
[1764688613072,0.04691014,136.29,136.27,0.05619522]
[1764688613277,4.0,136.29,136.27,0.05619522]
[1764688613469,5.46,136.28,136.16,102.8152]
[1764688613662,4.0,136.26,136.13,102.8362]
[1764688613975,4.0,136.26,136.14,164.8309]
[1764688614171,4.0,136.26,136.17,102.8059]
[1764688614363,0.05222946,136.23,136.2,0.04995422]
[1764688615071,0.05222946,136.23,136.2,102.83355422]
[1764688615266,0.05222946,136.23,136.2,0.04995422]
[1764688616173,4.05222946,136.23,136.2,0.04995422]
[1764688616375,10.6068,136.22,136.1,102.8601]
[1764688616568,70.02,136.21,136.06,102.8922]
[1764688616873,74.0,136.2,136.09,109.4809]
[1764688617073,8.65413284,136.3,136.18,102.8019]
[1764688617263,4.0,136.3,136.2,102.7837]
[1764688617464,0.04934228,136.26,136.22,102.77]
[1764688617661,0.04934228,136.26,136.2,102.7837]
[1764688617864,0.04934228,136.26,136.24,6.6054]
[1764688618073,0.04934228,136.26,136.17,102.8074]
[1764688618284,0.05164213,136.23,136.16,102.8144]
[1764688618485,0.05164213,136.23,136.19,102.7944]
[1764688618772,0.05164213,136.23,136.17,102.8067]
[1764688618977,0.05164213,136.23,136.14,102.8292]
[1764688618978,0.05164213,136.23,136.15,102.8204]
[1764688619170,0.05569855,136.2,136.15,6.6101]
[1764688619569,0.05569855,136.2,136.14,102.8301]
[1764688619872,0.05569855,136.2,136.12,102.8445]
[1764688619873,0.05569855,136.2,136.12,102.8467]
[1764688620063,0.05569855,136.2,136.14,102.8309]
[1764688620064,70.13569855,136.2,136.14,102.8309]
[1764688620273,0.04827951,136.18,136.14,102.8317]
[1764688620480,0.04827951,136.18,136.14,102.8263]
[1764688620674,0.04827951,136.18,136.16,6.6096]
[1764688620978,0.04827951,136.18,136.16,109.4259]
[1764688621183,0.04827951,136.18,136.14,6.6105]
[1764688621482,0.04827951,136.18,136.11,102.8531]
[1764688621669,4.04827951,136.18,136.07,6.6139]
[1764688621977,4.04827951,136.18,136.06,102.8921]
[1764688621978,0.05385717,136.14,136.06,102.8921]
[1764688622173,0.05385717,136.14,136.07,109.4977]
[1764688622381,0.05385717,136.14,136.06,102.8924]
[1764688622571,70.05385717,136.14,136.04,102.9048]
[1764688622775,0.05011159,136.1,136.04,62.0]
[1764688623075,4.0,136.21,136.09,102.8641]
[1764688623380,4.0,136.21,136.11,102.8545]
[1764688623676,70.0,136.21,136.14,102.8313]
[1764688623878,70.0,136.21,136.11,102.8545]
[1764688624074,92.1,136.24,136.16,102.8158]
[1764688624075,0.05252533,136.17,136.16,102.8158]
[1764688624280,92.1,136.24,136.16,102.8158]
[1764688624281,92.1,136.24,136.17,109.4164]
[1764688624477,162.08,136.24,136.17,6.6087]
[1764688624677,158.06,136.24,136.12,102.8457]
[1764688624975,4.0,136.23,136.11,102.8548]
[1764688625171,0.04870194,136.18,136.16,0.05232232]
[1764688625375,0.05088183,136.18,136.16,0.05232232]
[1764688625570,0.05088183,136.18,136.16,102.86792232]
[1764688625782,88.1,136.24,136.18,6.6086]
[1764688625964,88.1,136.24,136.2,102.7831]
[1764688626167,4.0,136.35,136.22,102.7715]
[1764688626372,73.96,136.34,136.24,102.7538]
[1764688626571,73.96,136.34,136.26,102.7384]
[1764688626572,4.0,136.34,136.26,102.7384]
[1764688626874,0.05425661,136.31,136.29,0.04656786]
[1764688627074,69.96,136.36,136.28,6.6037]
[1764688627279,0.05557094,136.31,136.29,0.04826423]
[1764688627470,69.94,136.37,136.25,109.3498]
[1764688627670,0.05370769,136.31,136.29,0.04650607]
[1764688627870,4.0,136.36,136.29,0.04650607]
[1764688628167,0.05641443,136.34,136.29,0.04650607]
[1764688628474,0.05641443,136.34,136.3,0.05604964]
[1764688628880,0.05641443,136.34,136.31,102.7024]
[1764688629071,102.5471,136.52,136.3,102.76214964]
[1764688629072,4.05,136.42,136.38,102.6457]
[1764688629383,88.08,136.51,136.37,102.6555]
[1764688629384,4.05,136.48,136.37,102.6555]
[1764688629569,4.05,136.48,136.39,62.0]
[1764688630270,4.05,136.44,136.29,102.7156]
[1764688630469,4.05,136.41,136.28,102.7228]
[1764688630677,102.6121,136.44,136.29,102.7182]
[1764688630678,4.05,136.39,136.29,102.7182]
[1764688630880,4.05,136.44,136.35,102.6676]
[1764688631071,4.05,136.49,136.41,102.6251]
[1764688631280,4.05,136.57,136.44,102.6031]
[1764688631575,70.04,136.54,136.42,102.6163]
[1764688631780,4.05,136.51,136.49,0.05499099]
[1764688631976,4.10388877,136.51,136.49,0.05436996]
[1764688632178,4.10388877,136.51,136.4,102.6334]
[1764688632476,4.05,136.51,136.43,102.6097]
[1764688632678,4.05,136.51,136.41,102.6272]
[1764688632988,4.05,136.51,136.4,102.6334]
[1764688633278,4.05,136.46,136.44,0.05457998]
[1764688633469,4.05,136.46,136.35,102.6709]
[1764688633671,4.05,136.46,136.34,102.6791]
[1764688633672,4.05,136.46,136.33,102.6841]
[1764688633867,4.05,136.46,136.34,102.6776]
[1764688634076,4.05,136.46,136.38,102.647]
[1764688634275,4.05,136.51,136.41,102.6238]
[1764688634476,0.05643426,136.47,136.45,0.04751027]
[1764688634983,5.56643426,136.47,136.37,102.6555]
[1764688635176,5.56643426,136.47,136.36,102.6622]
[1764688635177,4.05,136.47,136.35,109.2698]
[1764688635384,4.05,136.53,136.41,102.6254]
[1764688635578,4.05,136.53,136.43,102.6108]
[1764688635768,69.92,136.52,136.39,102.6427]
[1764688635972,69.92,136.52,136.36,102.6629]
[1764688635973,0.05549558,136.47,136.36,102.6629]
[1764688636180,0.0480624,136.43,136.37,102.6538]
[1764688636477,0.0480624,136.43,136.38,102.6483]
[1764688636678,0.0480624,136.43,136.38,102.648]
[1764688636878,0.0480624,136.43,136.38,6.5987]
[1764688637084,0.0480624,136.43,136.35,102.6735]
[1764688637281,69.9480624,136.43,136.32,102.6927]
[1764688637480,69.9,136.42,136.31,62.0]
[1764688637686,4.05,136.41,136.28,102.7238]
[1764688637887,106.6789,136.41,136.26,102.7381]
[1764688638178,106.6789,136.41,136.23,102.7601]
[1764688638179,0.05273168,136.36,136.23,102.7634]
[1764688638382,4.10273168,136.36,136.22,6.6065]
[1764688638580,73.93,136.35,136.24,102.7533]
[1764688638776,69.86,136.34,136.26,102.7385]
[1764688638980,0.05484605,136.31,136.22,102.7655]
[1764688639187,0.05484605,136.31,136.27,102.7306]
[1764688639384,0.05182722,136.28,136.26,205.4774]
[1764688639685,4.05,136.33,136.15,102.8229]
[1764688639892,4.05,136.3,136.17,102.8056]
[1764688640189,4.05,136.3,136.18,102.7994]
[1764688640385,4.05,136.28,136.17,102.808]
[1764688640694,4.09941995,136.25,136.13,102.8394]
[1764688640878,4.05,136.25,136.13,102.8376]
[1764688641074,4.05,136.25,136.13,6.6109]
[1764688641288,4.05,136.25,136.13,102.8389]
[1764688641486,4.05,136.25,136.17,109.4184]
[1764688641686,4.05,136.25,136.14,102.8316]
[1764688641687,0.0498404,136.22,136.15,102.8245]
[1764688642081,69.8,136.21,136.15,102.8245]
[1764688642388,4.05,136.3,136.19,102.7921]
[1764688642700,4.05,136.28,136.17,109.4175]
[1764688642889,4.05,136.28,136.17,109.4186]
[1764688643193,73.83,136.27,136.17,102.8095]
[1764688643491,0.04638878,136.23,136.21,0.0466222]
[1764688643677,4.05,136.22,136.13,102.8361]
[1764688643879,4.05,136.22,136.14,102.8287]
[1764688644080,4.05,136.27,136.16,102.8165]